[Event "Early-Titled-Tuesday-Blitz-September-26-2023"]
[Site "Chess.com"]
[Date "2023.09.26"]
[Round "9"]
[White "stepanosinovsky"]
[Black "CristianS27"]
[Result "1-0"]
[WhiteElo "2370"]
[BlackElo "2484"]
[TimeControl "180+1"]
[EndTime "9:45:08 PDT"]
[Termination "stepanosinovsky won on time"]

1. Nf3 {[%clk 0:02:54.5]} 1... Nf6 {[%clk 0:02:05.7]} 2. g3 {[%clk 0:02:55.4]}
2... g6 {[%clk 0:02:06.6]} 3. Bg2 {[%clk 0:02:53.8]} 3... Bg7 {[%clk 0:02:06.6]}
4. O-O {[%clk 0:02:54.5]} 4... O-O {[%clk 0:02:07.5]} 5. d3 {[%clk 0:02:55]}
5... d5 {[%clk 0:02:07.6]} 6. Nbd2 {[%clk 0:02:54.1]} 6... Nc6 {[%clk
0:02:08.3]} 7. e4 {[%clk 0:02:54.2]} 7... e5 {[%clk 0:02:09.2]} 8. Re1 {[%clk
0:02:53.5]} 8... Re8 {[%clk 0:02:09.9]} 9. Qe2 {[%clk 0:02:49.7]} 9... h6 {[%clk
0:02:07.5]} 10. a4 {[%clk 0:02:47.5]} 10... a5 {[%clk 0:02:06.2]} 11. exd5
{[%clk 0:02:47.3]} 11... Nxd5 {[%clk 0:02:04.8]} 12. Nc4 {[%clk 0:02:47.7]}
12... Be6 {[%clk 0:01:56.8]} 13. c3 {[%clk 0:02:44.5]} 13... Bf5 {[%clk
0:01:55]} 14. Nfd2 {[%clk 0:02:41.5]} 14... Qd7 {[%clk 0:01:33.8]} 15. Ne4
{[%clk 0:02:40.6]} 15... b6 {[%clk 0:01:34.2]} 16. Ne3 {[%clk 0:02:14.6]} 16...
Nxe3 {[%clk 0:01:32.5]} 17. Bxe3 {[%clk 0:02:14.8]} 17... Rad8 {[%clk
0:01:33.1]} 18. Rad1 {[%clk 0:02:02.4]} 18... Bg4 {[%clk 0:01:12.2]} 19. Bf3
{[%clk 0:01:36.7]} 19... Bxf3 {[%clk 0:01:10.8]} 20. Qxf3 {[%clk 0:01:37.6]}
20... f5 {[%clk 0:01:09.7]} 21. Nd2 {[%clk 0:01:34.4]} 21... Qd5 {[%clk
0:01:06.2]} 22. Kf1 {[%clk 0:01:10.4]} 22... Qxd3+ {[%clk 0:01:02.7]} 23. Qe2
{[%clk 0:01:10.3]} 23... Qxe2+ {[%clk 0:01:02.3]} 24. Kxe2 {[%clk 0:01:09.6]}
24... e4 {[%clk 0:01:01.4]} 25. Nc4 {[%clk 0:01:08.1]} 25... Rxd1 {[%clk
0:01:00]} 26. Rxd1 {[%clk 0:01:08.7]} 26... Rd8 {[%clk 0:01:00.4]} 27. Bf4
{[%clk 0:01:06.9]} 27... Rxd1 {[%clk 0:00:13.4]} 28. Kxd1 {[%clk 0:01:07.8]}
28... Ne7 {[%clk 0:00:09.8]} 29. Bxc7 {[%clk 0:01:04.8]} 29... Nd5 {[%clk
0:00:10.3]} 30. Bxb6 {[%clk 0:01:03.3]} 30... Bf8 {[%clk 0:00:01.5]} 31. Bd4
{[%clk 0:00:58]} 31... g5 {[%clk 0:00:01.7]} 32. Nxa5 {[%clk 0:00:55.7]} 32...
f4 {[%clk 0:00:02.3]} 33. Nc4 {[%clk 0:00:51.5]} 33... Kf7 {[%clk 0:00:02.5]}
34. a5 {[%clk 0:00:51.3]} 34... Nc7 {[%clk 0:00:01.3]} 35. b4 {[%clk 0:00:47.9]}
35... Nb5 {[%clk 0:00:01.8]} 36. a6 {[%clk 0:00:45.3]} 36... Ke6 {[%clk
0:00:02]} 37. Nb6 {[%clk 0:00:41]} 1-0

[Event "Early-Titled-Tuesday-Blitz-September-26-2023"]
[Site "Chess.com"]
[Date "2023.09.26"]
[Round "9"]
[White "Predator0608"]
[Black "Korchmar_Vasiliy"]
[Result "1-0"]
[WhiteElo "2501"]
[BlackElo "2667"]
[TimeControl "180+1"]
[EndTime "9:45:10 PDT"]
[Termination "Predator0608 won by checkmate"]

1. f4 {[%clk 0:02:58.5]} 1... g5 {[%clk 0:02:59.7]} 2. fxg5 {[%clk 0:02:57.2]}
2... h6 {[%clk 0:02:59.6]} 3. gxh6 {[%clk 0:02:57.9]} 3... Bxh6 {[%clk
0:02:54.6]} 4. d4 {[%clk 0:02:56.9]} 4... Bxc1 {[%clk 0:02:47.1]} 5. Qxc1 {[%clk
0:02:55.4]} 5... c5 {[%clk 0:02:47.6]} 6. dxc5 {[%clk 0:02:49]} 6... Na6 {[%clk
0:02:37.1]} 7. Nc3 {[%clk 0:02:40.3]} 7... Nxc5 {[%clk 0:02:35.2]} 8. Nf3 {[%clk
0:02:41.2]} 8... d5 {[%clk 0:02:30.8]} 9. Qd2 {[%clk 0:02:35.6]} 9... Nf6 {[%clk
0:02:27.3]} 10. O-O-O {[%clk 0:02:33.3]} 10... Bf5 {[%clk 0:02:00]} 11. Nxd5
{[%clk 0:02:26.9]} 11... Nfe4 {[%clk 0:01:59.1]} 12. Qf4 {[%clk 0:02:21.2]}
12... Nd6 {[%clk 0:01:45.3]} 13. Qe5 {[%clk 0:01:53.1]} 13... Rh6 {[%clk
0:01:38.1]} 14. Qg7 {[%clk 0:01:36.6]} 14... Rc8 {[%clk 0:01:07.4]} 15. e4
{[%clk 0:01:12.6]} 15... Bxe4 {[%clk 0:01:01.8]} 16. Bb5+ {[%clk 0:00:46.8]}
16... Rc6 {[%clk 0:00:51.6]} 17. Qxh6 {[%clk 0:00:37.5]} 17... Qa5 {[%clk
0:00:36.2]} 18. Bxc6+ {[%clk 0:00:26.2]} 18... bxc6 {[%clk 0:00:37.1]} 19. Nxe7
{[%clk 0:00:16.8]} 19... Nc4 {[%clk 0:00:18.2]} 20. Qh8+ {[%clk 0:00:14.1]}
20... Kxe7 {[%clk 0:00:18]} 21. Qh4+ {[%clk 0:00:14.3]} 21... f6 {[%clk
0:00:14.7]} 22. Rhe1 {[%clk 0:00:13.2]} 22... Qxa2 {[%clk 0:00:01.8]} 23. Rxe4+
{[%clk 0:00:13.7]} 23... Nxe4 {[%clk 0:00:02.7]} 24. Qxe4+ {[%clk 0:00:14.2]}
24... Kf8 {[%clk 0:00:01.5]} 25. Rd8+ {[%clk 0:00:14.5]} 25... Kg7 {[%clk
0:00:02.1]} 26. Rd7+ {[%clk 0:00:13.9]} 26... Kf8 {[%clk 0:00:01.1]} 27. Qe7+
{[%clk 0:00:14.2]} 27... Kg8 {[%clk 0:00:01.8]} 28. Qe8# {[%clk 0:00:15.1]} 1-0

[Event "Early-Titled-Tuesday-Blitz-September-26-2023"]
[Site "Chess.com"]
[Date "2023.09.26"]
[Round "9"]
[White "Maxterlopez"]
[Black "blitzo_vich"]
[Result "0-1"]
[WhiteElo "2734"]
[BlackElo "2642"]
[TimeControl "180+1"]
[EndTime "9:45:11 PDT"]
[Termination "blitzo_vich won on time"]

1. e4 {[%clk 0:02:59.7]} 1... e5 {[%clk 0:02:59]} 2. Nf3 {[%clk 0:03:00]} 2...
Nc6 {[%clk 0:02:58.4]} 3. Bc4 {[%clk 0:03:00.6]} 3... Nf6 {[%clk 0:02:56.8]} 4.
Ng5 {[%clk 0:03:00.4]} 4... d5 {[%clk 0:02:53.8]} 5. exd5 {[%clk 0:03:01.3]}
5... Na5 {[%clk 0:02:54.1]} 6. Bb5+ {[%clk 0:03:01.7]} 6... c6 {[%clk
0:02:54.8]} 7. dxc6 {[%clk 0:03:02.6]} 7... bxc6 {[%clk 0:02:55.7]} 8. Bd3
{[%clk 0:03:03.1]} 8... Nd5 {[%clk 0:02:52.7]} 9. h4 {[%clk 0:03:02.8]} 9... h6
{[%clk 0:02:46.6]} 10. Qh5 {[%clk 0:03:02.9]} 10... hxg5 {[%clk 0:02:38.7]} 11.
Qxh8 {[%clk 0:03:02]} 11... Nf4 {[%clk 0:02:36.9]} 12. Bf1 {[%clk 0:01:38.4]}
12... Qd5 {[%clk 0:02:26]} 13. d3 {[%clk 0:01:31.1]} 13... Nxg2+ {[%clk
0:02:24.4]} 14. Bxg2 {[%clk 0:01:31.2]} 14... Qxg2 {[%clk 0:02:23.8]} 15. hxg5
{[%clk 0:01:32.1]} 15... Bg4 {[%clk 0:02:13]} 16. Bd2 {[%clk 0:00:59.7]} 16...
O-O-O {[%clk 0:01:41.3]} 17. Qh4 {[%clk 0:00:14.6]} 17... Qf3 {[%clk 0:01:23]}
18. Kf1 {[%clk 0:00:13.4]} 18... Qd1+ {[%clk 0:01:13.8]} 19. Be1 {[%clk
0:00:10.5]} 19... Qe2+ {[%clk 0:00:54.3]} 20. Kg2 {[%clk 0:00:10.1]} 20... Bf3+
{[%clk 0:00:54.2]} 21. Kg3 {[%clk 0:00:10.7]} 21... Bxh1 {[%clk 0:00:46.8]} 22.
Qxh1 {[%clk 0:00:09.4]} 22... Bd6 {[%clk 0:00:37.3]} 23. Qe4 {[%clk 0:00:09.3]}
23... Qf1 {[%clk 0:00:27]} 24. Bxa5 {[%clk 0:00:07.8]} 24... Kd7 {[%clk
0:00:21.2]} 25. Bxd8 {[%clk 0:00:05.1]} 25... Kxd8 {[%clk 0:00:21]} 26. Qxc6
{[%clk 0:00:04]} 26... Qg1+ {[%clk 0:00:19.9]} 27. Kf3 {[%clk 0:00:03.6]} 27...
Qh1+ {[%clk 0:00:20.3]} 28. Ke2 {[%clk 0:00:02.9]} 28... Qxc6 {[%clk 0:00:21.2]}
0-1

[Event "Early-Titled-Tuesday-Blitz-September-26-2023"]
[Site "Chess.com"]
[Date "2023.09.26"]
[Round "9"]
[White "Evgeny81"]
[Black "imdvb6307"]
[Result "1-0"]
[WhiteElo "2751"]
[BlackElo "2495"]
[TimeControl "180+1"]
[EndTime "9:45:21 PDT"]
[Termination "Evgeny81 won on time"]

1. e4 {[%clk 0:03:00.9]} 1... e5 {[%clk 0:02:56.2]} 2. Nf3 {[%clk 0:02:59.8]}
2... Nf6 {[%clk 0:02:56.3]} 3. Nxe5 {[%clk 0:02:57.4]} 3... d6 {[%clk
0:02:56.4]} 4. Nf3 {[%clk 0:02:56.6]} 4... Nxe4 {[%clk 0:02:56.6]} 5. Qe2 {[%clk
0:02:57]} 5... Qe7 {[%clk 0:02:56.1]} 6. d3 {[%clk 0:02:57]} 6... Nf6 {[%clk
0:02:56.2]} 7. Bg5 {[%clk 0:02:57.1]} 7... Qxe2+ {[%clk 0:02:55.8]} 8. Bxe2
{[%clk 0:02:57.3]} 8... Be7 {[%clk 0:02:56.3]} 9. Nc3 {[%clk 0:02:56.8]} 9... c6
{[%clk 0:02:56.6]} 10. O-O-O {[%clk 0:02:56.6]} 10... Na6 {[%clk 0:02:55.8]} 11.
Ne4 {[%clk 0:02:52.9]} 11... d5 {[%clk 0:02:39.3]} 12. Nxf6+ {[%clk 0:02:49.7]}
12... Bxf6 {[%clk 0:02:37.9]} 13. Bxf6 {[%clk 0:02:49.3]} 13... gxf6 {[%clk
0:02:38.2]} 14. d4 {[%clk 0:02:47.8]} 14... Nc7 {[%clk 0:02:36.3]} 15. Rhe1
{[%clk 0:02:43.6]} 15... Kf8 {[%clk 0:02:25.1]} 16. g3 {[%clk 0:02:42.8]} 16...
Bd7 {[%clk 0:02:22.4]} 17. Nh4 {[%clk 0:02:40.2]} 17... Re8 {[%clk 0:02:19.7]}
18. Ng2 {[%clk 0:02:37.9]} 18... Rxe2 {[%clk 0:02:06.4]} 19. Rxe2 {[%clk
0:02:37.5]} 19... Bg4 {[%clk 0:02:06.5]} 20. Rde1 {[%clk 0:02:36]} 20... Bxe2
{[%clk 0:02:06.5]} 21. Rxe2 {[%clk 0:02:36.9]} 21... Ne6 {[%clk 0:02:06.9]} 22.
c3 {[%clk 0:02:35.2]} 22... Ke7 {[%clk 0:01:43.8]} 23. Nh4 {[%clk 0:02:29.2]}
23... Kd7 {[%clk 0:01:43.8]} 24. Nf5 {[%clk 0:02:18.8]} 24... Re8 {[%clk
0:01:36.4]} 25. Kd2 {[%clk 0:02:18.2]} 25... a5 {[%clk 0:01:29.8]} 26. Re3
{[%clk 0:02:04]} 26... a4 {[%clk 0:01:24.9]} 27. h4 {[%clk 0:02:02]} 27... b6
{[%clk 0:01:20.2]} 28. Rf3 {[%clk 0:01:58]} 28... Rg8 {[%clk 0:01:00.4]} 29. Nh6
{[%clk 0:01:37.6]} 29... Rg6 {[%clk 0:01:00.2]} 30. Nxf7 {[%clk 0:01:32.2]}
30... h5 {[%clk 0:00:57.8]} 31. Nh8 {[%clk 0:01:14.6]} 31... Rh6 {[%clk
0:00:37]} 32. Nf7 {[%clk 0:01:14]} 32... Rg6 {[%clk 0:00:36.4]} 33. Re3 {[%clk
0:01:09.6]} 33... Ke7 {[%clk 0:00:33.8]} 34. Nd8 {[%clk 0:01:09.7]} 34... Kxd8
{[%clk 0:00:27]} 35. Rxe6 {[%clk 0:01:09.8]} 35... Kd7 {[%clk 0:00:26.6]} 36.
Re3 {[%clk 0:01:09.4]} 36... Rg8 {[%clk 0:00:24.2]} 37. Ke2 {[%clk 0:01:02.8]}
37... b5 {[%clk 0:00:22.5]} 38. a3 {[%clk 0:01:02.5]} 38... Rg7 {[%clk 0:00:22]}
39. Kf3 {[%clk 0:01:02.9]} 39... Rg4 {[%clk 0:00:22]} 40. Kg2 {[%clk 0:00:53.2]}
40... Rg8 {[%clk 0:00:19.1]} 41. f3 {[%clk 0:00:45.1]} 41... Kd6 {[%clk
0:00:06.8]} 42. Kh3 {[%clk 0:00:44.5]} 42... Rh8 {[%clk 0:00:02.1]} 43. g4
{[%clk 0:00:41.8]} 43... hxg4+ {[%clk 0:00:02]} 44. fxg4 {[%clk 0:00:42.7]} 1-0

[Event "Early-Titled-Tuesday-Blitz-September-26-2023"]
[Site "Chess.com"]
[Date "2023.09.26"]
[Round "9"]
[White "Rosh1610"]
[Black "noblerone"]
[Result "0-1"]
[WhiteElo "2458"]
[BlackElo "2497"]
[TimeControl "180+1"]
[EndTime "9:45:23 PDT"]
[Termination "noblerone won by resignation"]

1. e4 {[%clk 0:02:44.7]} 1... d5 {[%clk 0:02:57.9]} 2. exd5 {[%clk 0:02:44.3]}
2... Qxd5 {[%clk 0:02:58.8]} 3. Nc3 {[%clk 0:02:45]} 3... Qd8 {[%clk 0:02:58.5]}
4. Nf3 {[%clk 0:02:45]} 4... Nf6 {[%clk 0:02:58.7]} 5. Bc4 {[%clk 0:02:45.5]}
5... a6 {[%clk 0:02:57.2]} 6. O-O {[%clk 0:02:45.9]} 6... b5 {[%clk 0:02:56]} 7.
Bb3 {[%clk 0:02:45.4]} 7... c5 {[%clk 0:02:55.2]} 8. d3 {[%clk 0:02:45.2]} 8...
e6 {[%clk 0:02:54.4]} 9. Bf4 {[%clk 0:02:44.7]} 9... Be7 {[%clk 0:02:49.9]} 10.
a4 {[%clk 0:02:40]} 10... b4 {[%clk 0:02:49.6]} 11. Ne2 {[%clk 0:02:40]} 11...
Bb7 {[%clk 0:02:49.3]} 12. Ne5 {[%clk 0:02:39.3]} 12... Nbd7 {[%clk 0:02:47]}
13. Ng3 {[%clk 0:02:38.9]} 13... Nxe5 {[%clk 0:02:47]} 14. Bxe5 {[%clk
0:02:39.8]} 14... O-O {[%clk 0:02:47.1]} 15. f4 {[%clk 0:02:40]} 15... Nd7
{[%clk 0:02:40.7]} 16. Qg4 {[%clk 0:02:39.1]} 16... Nxe5 {[%clk 0:02:32.8]} 17.
fxe5 {[%clk 0:02:40]} 17... Qd4+ {[%clk 0:01:50]} 18. Qxd4 {[%clk 0:02:33.7]}
18... cxd4 {[%clk 0:01:50.9]} 19. a5 {[%clk 0:02:27.7]} 19... Rad8 {[%clk
0:01:45]} 20. Ne2 {[%clk 0:02:23.7]} 20... Bd5 {[%clk 0:01:36.1]} 21. Ba4 {[%clk
0:02:02.3]} 21... b3 {[%clk 0:01:26.3]} 22. cxb3 {[%clk 0:01:59.2]} 22... Rb8
{[%clk 0:01:26.2]} 23. Kh1 {[%clk 0:01:57.5]} 23... Bxb3 {[%clk 0:01:19.8]} 24.
Bxb3 {[%clk 0:01:46.4]} 24... Rxb3 {[%clk 0:01:19.5]} 25. Nxd4 {[%clk 0:01:47]}
25... Rxb2 {[%clk 0:01:07.5]} 26. Nc6 {[%clk 0:01:38.1]} 26... Bg5 {[%clk
0:01:03.3]} 27. Rab1 {[%clk 0:01:32.3]} 27... Rc2 {[%clk 0:00:47.9]} 28. Rb6
{[%clk 0:01:14]} 28... Rc8 {[%clk 0:00:45.4]} 29. Na7 {[%clk 0:00:45.4]} 29...
Rc1 {[%clk 0:00:31.6]} 30. Rb1 {[%clk 0:00:36.4]} 30... Rxf1+ {[%clk 0:00:30.5]}
31. Rxf1 {[%clk 0:00:37.3]} 31... Rc7 {[%clk 0:00:31]} 32. h4 {[%clk 0:00:29]}
32... Bxh4 {[%clk 0:00:26.1]} 33. Rb1 {[%clk 0:00:24.7]} 33... h5 {[%clk
0:00:24.4]} 34. Rb8+ {[%clk 0:00:23.5]} 34... Kh7 {[%clk 0:00:24.6]} 35. Nc8
{[%clk 0:00:22.3]} 35... Bg3 {[%clk 0:00:23]} 36. Rb1 {[%clk 0:00:20.8]} 36...
Rxc8 {[%clk 0:00:22.9]} 37. Kg1 {[%clk 0:00:21.7]} 37... Rc2 {[%clk 0:00:21.7]}
38. Kf1 {[%clk 0:00:21.5]} 38... Rd2 {[%clk 0:00:21.4]} 39. Rb6 {[%clk 0:00:21]}
39... Rxd3 {[%clk 0:00:20.4]} 40. Rxa6 {[%clk 0:00:20.8]} 40... Rd5 {[%clk
0:00:20.9]} 41. Ra8 {[%clk 0:00:19.9]} 41... Rxe5 {[%clk 0:00:19.5]} 0-1

[Event "Early-Titled-Tuesday-Blitz-September-26-2023"]
[Site "Chess.com"]
[Date "2023.09.26"]
[Round "9"]
[White "Boxerandchessplayer"]
[Black "Chaos_Magic"]
[Result "1/2-1/2"]
[WhiteElo "2190"]
[BlackElo "2402"]
[TimeControl "180+1"]
[EndTime "9:45:29 PDT"]
[Termination "Game drawn by repetition"]

1. d4 {[%clk 0:03:00.9]} 1... Nf6 {[%clk 0:02:49.9]} 2. Nf3 {[%clk 0:02:59.4]}
2... d5 {[%clk 0:02:48.6]} 3. c4 {[%clk 0:02:58.8]} 3... e6 {[%clk 0:02:48]} 4.
g3 {[%clk 0:02:58.9]} 4... g6 {[%clk 0:02:46.8]} 5. Bg2 {[%clk 0:02:59]} 5...
Bg7 {[%clk 0:02:47]} 6. O-O {[%clk 0:02:59.7]} 6... O-O {[%clk 0:02:47.2]} 7.
Qc2 {[%clk 0:02:59.5]} 7... Nc6 {[%clk 0:02:47]} 8. Rd1 {[%clk 0:02:57.2]} 8...
Qe7 {[%clk 0:02:45.7]} 9. b3 {[%clk 0:02:56.6]} 9... Ne4 {[%clk 0:02:44]} 10.
Ba3 {[%clk 0:02:54.9]} 10... Nb4 {[%clk 0:02:42]} 11. Qb2 {[%clk 0:02:47.9]}
11... a5 {[%clk 0:02:39.5]} 12. Nc3 {[%clk 0:02:46.5]} 12... Nxc3 {[%clk
0:02:22.5]} 13. Qxc3 {[%clk 0:02:46.1]} 13... c5 {[%clk 0:02:20.2]} 14. cxd5
{[%clk 0:02:13.3]} 14... exd5 {[%clk 0:02:15.5]} 15. e3 {[%clk 0:01:52.3]} 15...
Bg4 {[%clk 0:01:59.8]} 16. Qd2 {[%clk 0:01:46.3]} 16... cxd4 {[%clk 0:01:41.6]}
17. exd4 {[%clk 0:01:38.9]} 17... Rfc8 {[%clk 0:01:40.7]} 18. Re1 {[%clk
0:01:35.1]} 18... Be6 {[%clk 0:01:00.2]} 19. Rac1 {[%clk 0:01:31.4]} 19... Rxc1
{[%clk 0:00:53.6]} 20. Rxc1 {[%clk 0:01:28.1]} 20... Rc8 {[%clk 0:00:40.6]} 21.
Rxc8+ {[%clk 0:01:17.8]} 21... Bxc8 {[%clk 0:00:40.4]} 22. Ne1 {[%clk
0:01:17.9]} 22... Bf5 {[%clk 0:00:32.3]} 23. Bxb4 {[%clk 0:01:05.5]} 23... axb4
{[%clk 0:00:28]} 24. Bxd5 {[%clk 0:01:05.6]} 24... Qd7 {[%clk 0:00:27.8]} 25.
Bg2 {[%clk 0:00:47.8]} 25... Qxd4 {[%clk 0:00:20.7]} 26. Qxd4 {[%clk 0:00:45.9]}
26... Bxd4 {[%clk 0:00:21.5]} 27. Bxb7 {[%clk 0:00:45.9]} 27... Bb1 {[%clk
0:00:21.6]} 28. Bd5 {[%clk 0:00:42]} 28... Bxa2 {[%clk 0:00:21.5]} 29. Nd3
{[%clk 0:00:34.1]} 29... Bc3 {[%clk 0:00:20.4]} 30. Kf1 {[%clk 0:00:33.8]} 30...
Bb1 {[%clk 0:00:19.6]} 31. Ke2 {[%clk 0:00:34.3]} 31... Bxd3+ {[%clk 0:00:19.3]}
32. Kxd3 {[%clk 0:00:34.1]} 32... Kg7 {[%clk 0:00:19.7]} 33. f4 {[%clk
0:00:25.8]} 33... f6 {[%clk 0:00:19]} 34. Bc4 {[%clk 0:00:24.3]} 34... g5 {[%clk
0:00:18]} 35. fxg5 {[%clk 0:00:21.3]} 35... fxg5 {[%clk 0:00:18.2]} 36. Ke4
{[%clk 0:00:21.1]} 36... h6 {[%clk 0:00:18.3]} 37. h3 {[%clk 0:00:20.5]} 37...
Bd2 {[%clk 0:00:18.4]} 38. Kf5 {[%clk 0:00:19.5]} 38... Bc3 {[%clk 0:00:18.5]}
39. h4 {[%clk 0:00:18.2]} 39... gxh4 {[%clk 0:00:18]} 40. gxh4 {[%clk
0:00:18.8]} 40... Be1 {[%clk 0:00:18.7]} 41. h5 {[%clk 0:00:19.1]} 41... Bc3
{[%clk 0:00:19]} 42. Bd5 {[%clk 0:00:19.4]} 42... Bd2 {[%clk 0:00:19.2]} 43. Bc4
{[%clk 0:00:20]} 43... Bc3 {[%clk 0:00:19.6]} 44. Bd5 {[%clk 0:00:20.7]} 44...
Bd2 {[%clk 0:00:20]} 45. Bc4 {[%clk 0:00:21.4]} 45... Bc3 {[%clk 0:00:20.4]}
1/2-1/2

[Event "Early-Titled-Tuesday-Blitz-September-26-2023"]
[Site "Chess.com"]
[Date "2023.09.26"]
[Round "9"]
[White "artin10862"]
[Black "Jagerrmeisterr"]
[Result "1-0"]
[WhiteElo "2895"]
[BlackElo "2712"]
[TimeControl "180+1"]
[EndTime "9:45:32 PDT"]
[Termination "artin10862 won by resignation"]

1. d4 {[%clk 0:02:59.6]} 1... f5 {[%clk 0:02:56.9]} 2. Bg5 {[%clk 0:02:54.5]}
2... h6 {[%clk 0:02:53.9]} 3. Bh4 {[%clk 0:02:53.8]} 3... g5 {[%clk 0:02:53.2]}
4. Bg3 {[%clk 0:02:53.6]} 4... Nf6 {[%clk 0:02:52.8]} 5. e3 {[%clk 0:02:47.2]}
5... Bg7 {[%clk 0:02:52.2]} 6. h4 {[%clk 0:02:36.9]} 6... g4 {[%clk 0:02:51.5]}
7. Bd3 {[%clk 0:02:29.9]} 7... e6 {[%clk 0:02:50.7]} 8. Ne2 {[%clk 0:02:28.8]}
8... Nc6 {[%clk 0:02:49.5]} 9. c4 {[%clk 0:02:26.8]} 9... Ne7 {[%clk 0:02:48.1]}
10. Nbc3 {[%clk 0:02:24.6]} 10... O-O {[%clk 0:02:47.7]} 11. Qc2 {[%clk
0:02:19.7]} 11... d5 {[%clk 0:02:36.8]} 12. cxd5 {[%clk 0:02:16.7]} 12... exd5
{[%clk 0:02:30.1]} 13. Be5 {[%clk 0:02:00.2]} 13... c6 {[%clk 0:02:15.4]} 14.
Nf4 {[%clk 0:01:47.2]} 14... Bd7 {[%clk 0:01:59.4]} 15. f3 {[%clk 0:01:41.7]}
15... Qe8 {[%clk 0:01:39.4]} 16. Nce2 {[%clk 0:01:38]} 16... Rc8 {[%clk
0:01:21.8]} 17. Ng3 {[%clk 0:01:30.6]} 17... Nh7 {[%clk 0:01:13.9]} 18. Bxg7
{[%clk 0:00:53.9]} 18... Kxg7 {[%clk 0:01:13.3]} 19. fxg4 {[%clk 0:00:54]} 19...
Nf6 {[%clk 0:01:04.6]} 20. gxf5 {[%clk 0:00:48.4]} 20... Nxf5 {[%clk 0:00:59.8]}
21. Bxf5 {[%clk 0:00:44.6]} 21... Qxe3+ {[%clk 0:00:59.4]} 22. Nfe2 {[%clk
0:00:44.1]} 22... Ne4 {[%clk 0:00:46.4]} 23. Bxe4 {[%clk 0:00:41.9]} 23... Rce8
{[%clk 0:00:40.1]} 24. Bf3 {[%clk 0:00:37.3]} 24... Bg4 {[%clk 0:00:34.9]} 25.
Qd2 {[%clk 0:00:27]} 25... Qe6 {[%clk 0:00:14.8]} 26. O-O {[%clk 0:00:16.8]}
26... Bxf3 {[%clk 0:00:14.6]} 27. Rxf3 {[%clk 0:00:16.8]} 27... Rxf3 {[%clk
0:00:14.3]} 28. gxf3 {[%clk 0:00:17.7]} 28... Kh8 {[%clk 0:00:15]} 29. Rf1
{[%clk 0:00:14.9]} 29... Qh3 {[%clk 0:00:13]} 30. Qxh6+ {[%clk 0:00:14.6]} 30...
Kg8 {[%clk 0:00:13]} 31. Qg6+ {[%clk 0:00:14.8]} 31... Kf8 {[%clk 0:00:12.9]}
32. Qf6+ {[%clk 0:00:11.5]} 32... Kg8 {[%clk 0:00:13.1]} 33. Nf5 {[%clk
0:00:11.9]} 1-0

[Event "Early-Titled-Tuesday-Blitz-September-26-2023"]
[Site "Chess.com"]
[Date "2023.09.26"]
[Round "9"]
[White "nikitakhoroshev"]
[Black "AlmasRakhmatullaev"]
[Result "0-1"]
[WhiteElo "2674"]
[BlackElo "2786"]
[TimeControl "180+1"]
[EndTime "9:45:32 PDT"]
[Termination "AlmasRakhmatullaev won by resignation"]

1. Nf3 {[%clk 0:02:55.3]} 1... Nf6 {[%clk 0:02:54.9]} 2. g3 {[%clk 0:02:54.5]}
2... g6 {[%clk 0:02:55.2]} 3. Bg2 {[%clk 0:02:48.6]} 3... Bg7 {[%clk 0:02:56.1]}
4. d4 {[%clk 0:02:49]} 4... d6 {[%clk 0:02:55.9]} 5. Nc3 {[%clk 0:02:49.5]} 5...
c6 {[%clk 0:02:55]} 6. a4 {[%clk 0:02:48.9]} 6... O-O {[%clk 0:02:53.1]} 7. e4
{[%clk 0:02:48.7]} 7... Bg4 {[%clk 0:02:51.9]} 8. h3 {[%clk 0:02:48.1]} 8...
Bxf3 {[%clk 0:02:52.3]} 9. Bxf3 {[%clk 0:02:49]} 9... e5 {[%clk 0:02:53.1]} 10.
dxe5 {[%clk 0:02:48.4]} 10... dxe5 {[%clk 0:02:54]} 11. Qxd8 {[%clk 0:02:48.6]}
11... Rxd8 {[%clk 0:02:54.9]} 12. Be3 {[%clk 0:02:44.7]} 12... Na6 {[%clk
0:02:55]} 13. Ke2 {[%clk 0:02:42.4]} 13... Nb4 {[%clk 0:02:38.3]} 14. Rac1
{[%clk 0:02:41.8]} 14... b6 {[%clk 0:02:29.5]} 15. Rhd1 {[%clk 0:02:39.7]} 15...
Rxd1 {[%clk 0:02:26.4]} 16. Nxd1 {[%clk 0:02:40]} 16... Rd8 {[%clk 0:02:20.8]}
17. c3 {[%clk 0:02:38.2]} 17... Nd3 {[%clk 0:02:16.6]} 18. Rc2 {[%clk
0:02:38.4]} 18... Nc5 {[%clk 0:02:16.8]} 19. Bxc5 {[%clk 0:02:37.4]} 19... bxc5
{[%clk 0:02:17.7]} 20. Ne3 {[%clk 0:02:37.1]} 20... Ne8 {[%clk 0:02:15.1]} 21.
Nc4 {[%clk 0:02:31.3]} 21... Kf8 {[%clk 0:02:15.1]} 22. Na5 {[%clk 0:02:27]}
22... Rc8 {[%clk 0:02:08.9]} 23. Bg4 {[%clk 0:02:26.5]} 23... Rc7 {[%clk
0:02:08.7]} 24. Rd2 {[%clk 0:02:27.1]} 24... Ke7 {[%clk 0:02:07.4]} 25. Nc4
{[%clk 0:02:03.2]} 25... h5 {[%clk 0:02:07.1]} 26. Bf3 {[%clk 0:02:02.4]} 26...
f6 {[%clk 0:01:58.1]} 27. h4 {[%clk 0:02:01.4]} 27... Bh6 {[%clk 0:01:47.1]} 28.
Rd3 {[%clk 0:01:58.7]} 28... Ng7 {[%clk 0:01:36.3]} 29. Bg2 {[%clk 0:01:57.8]}
29... g5 {[%clk 0:01:27.3]} 30. hxg5 {[%clk 0:01:54.5]} 30... Bxg5 {[%clk
0:01:28.2]} 31. Bh3 {[%clk 0:01:53.2]} 31... h4 {[%clk 0:01:28.8]} 32. Bg4
{[%clk 0:01:52.4]} 32... Ne8 {[%clk 0:01:02.1]} 33. a5 {[%clk 0:01:51.7]} 33...
Rb7 {[%clk 0:00:44.5]} 34. a6 {[%clk 0:01:51.6]} 34... Rc7 {[%clk 0:00:44.2]}
35. Kf3 {[%clk 0:01:50.2]} 35... hxg3 {[%clk 0:00:40.5]} 36. fxg3 {[%clk
0:01:49.6]} 36... Bh6 {[%clk 0:00:37.9]} 37. Rd1 {[%clk 0:01:43.1]} 37... Bf8
{[%clk 0:00:21.8]} 38. Bf5 {[%clk 0:01:36.6]} 38... Ng7 {[%clk 0:00:17.8]} 39.
Nd6 {[%clk 0:01:35.7]} 39... Nxf5 {[%clk 0:00:12.1]} 40. exf5 {[%clk 0:01:28.1]}
40... Rd7 {[%clk 0:00:02.2]} 41. Nc8+ {[%clk 0:01:19.9]} 41... Kd8 {[%clk
0:00:02.8]} 42. Rxd7+ {[%clk 0:01:20.3]} 42... Kxd7 {[%clk 0:00:03.7]} 43. Nxa7
{[%clk 0:01:21]} 43... c4 {[%clk 0:00:04.3]} 44. Kg4 {[%clk 0:01:15.7]} 44...
Bc5 {[%clk 0:00:04.5]} 45. Nxc6 {[%clk 0:01:16]} 45... Kxc6 {[%clk 0:00:05.4]}
46. Kh5 {[%clk 0:01:16.9]} 46... e4 {[%clk 0:00:05.1]} 47. Kg4 {[%clk 0:01:14]}
47... Bd6 {[%clk 0:00:05.6]} 0-1